bitfinex-derivatives/quotes_ETHF0:USTF0_20230106
["timestamp","ask_amount","ask_price","bid_price","bid_amount"]
[1672972958778,6.2008377,1251.5,1251.4,5.49478306]
[1672972959094,8.7008377,1251.5,1251.4,5.49478306]
[1672972959408,8.7008377,1251.5,1251.4,1.79694893]
[1672972959610,6.2008377,1251.5,1251.4,1.79694893]
[1672972960032,6.2008377,1251.5,1251.4,4.29694893]
[1672972960775,2.9930377,1251.5,1251.4,4.29694893]
[1672972960975,6.2008377,1251.5,1251.4,4.29694893]
[1672972962143,6.2008377,1251.5,1251.4,6.6937582]
[1672972962358,6.2008377,1251.5,1251.4,4.29694893]
[1672972964033,6.2008377,1251.5,1251.4,1.79694893]
[1672972964349,6.2008377,1251.5,1251.4,2.99427213]
[1672972965295,6.2008377,1251.5,1251.4,1.79694893]
[1672972966237,6.2008377,1251.5,1251.4,2.99412027]
[1672972966445,6.2008377,1251.5,1251.4,1.79694893]
[1672972966658,2.9930377,1251.5,1251.4,1.79694893]
[1672972966974,2.9930377,1251.5,1251.4,2.99399183]
[1672972969287,2.9930377,1251.5,1251.4,1.1970429]
[1672972970022,2.9930377,1251.5,1251.4,2.99399183]
[1672972970757,2.9930377,1251.5,1251.4,2.99380621]
[1672972970964,2.9930377,1251.5,1251.4,2.99380905]
[1672972973378,2.9930377,1251.5,1251.4,1.19686012]
[1672972973919,2.9930377,1251.5,1251.4,1.18906462]
[1672972974115,2.99152449,1251.5,1251.4,1.18906462]
[1672972974850,2.99152449,1251.5,1251.4,1.79694893]
[1672972975059,2.99152449,1251.7,1251.5,2.5]
[1672972975377,5.49152449,1251.7,1251.6,2.5]
[1672972976008,2.99152449,1251.7,1251.6,2.5]
[1672972978208,2.99152449,1251.7,1251.6,4.29480293]
[1672972978418,2.99152449,1251.7,1251.6,2.5]
[1672972979160,8.69932449,1251.8,1251.6,2.5]
[1672972979574,5.49152449,1251.7,1251.6,2.5]
[1672972979786,2.99152449,1251.7,1251.6,2.5]
[1672972980423,5.49152449,1251.7,1251.5,2.5]
[1672972980634,5.49152449,1251.7,1251.5,4.29480293]
[1672972980839,5.49152449,1251.7,1251.5,2.5]
[1672972981159,2.99152449,1251.6,1251.5,2.5]
[1672972981368,2.99152449,1251.6,1251.5,10.498]
[1672972981679,6.19932449,1251.8,1251.5,14.30724792]
[1672972981894,6.19932449,1251.8,1251.6,9.79154221]
[1672972982106,6.19932449,1251.8,1251.7,2.5]
[1672972982309,2.99152449,1251.8,1251.7,2.5]
[1672972984413,2.98826137,1251.8,1251.7,2.5]
[1672972984619,2.9883062,1251.8,1251.7,2.5]
[1672972986618,9.29203545,1251.9,1251.5,12.29154221]
[1672972986934,6.19506901,1251.7,1251.5,12.29154221]
[1672972987249,2.5,1251.6,1251.5,10.498]
[1672972987454,6.19506901,1251.7,1251.5,12.29154221]
[1672972987871,2.98726901,1251.7,1251.5,12.29154221]
[1672972988087,6.19506901,1251.7,1251.5,12.29154221]
[1672972988833,2.98726901,1251.7,1251.5,12.29154221]
[1672972989043,6.19506901,1251.7,1251.5,12.29154221]
[1672972990406,3.2078,1251.7,1251.5,12.29154221]
[1672972993036,2.98726901,1251.8,1251.5,14.68461278]
[1672972993356,6.19506901,1251.8,1251.5,14.68461278]
[1672972994407,6.19506901,1251.8,1251.6,1.79354221]
[1672972994617,6.19506901,1251.8,1251.7,2.5]
[1672972995663,2.98726901,1251.8,1251.7,2.5]
[1672972995878,6.19506901,1251.8,1251.7,2.5]
[1672972996299,2.98726901,1251.8,1251.7,2.5]
[1672972996504,6.19506901,1251.8,1251.7,2.5]
[1672972998082,3.2078,1251.8,1251.5,15.49934221]
[1672972998292,2.98996448,1251.7,1251.5,15.49934221]
[1672972998506,5.48996448,1251.7,1251.5,15.49934221]
[1672972998718,2.98996448,1251.7,1251.5,15.49934221]
[1672972998920,6.19776448,1251.8,1251.5,17.89241278]
[1672972999132,2.98996448,1251.7,1251.5,17.89241278]
[1672972999553,6.19776448,1251.8,1251.6,1.79354221]
[1672972999769,6.19776448,1251.8,1251.7,2.5]
[1672973002919,2.98996448,1251.8,1251.7,2.5]
[1672973003552,6.19776448,1251.8,1251.7,2.5]
[1672973004503,2.98996448,1251.8,1251.7,2.5]
[1672973009328,9.29203545,1251.9,1251.6,1.79354221]
[1672973009646,2.99101713,1251.7,1251.6,1.79354221]
[1672973010274,6.19881713,1251.7,1251.5,12.29154221]
[1672973010600,6.19881713,1251.7,1251.5,4.29354221]
[1672973010800,2.99101713,1251.6,1251.5,4.29354221]
[1672973011012,6.19881713,1251.7,1251.5,4.29354221]
[1672973012908,2.99101713,1251.6,1251.5,4.29354221]
[1672973013116,5.49101713,1251.6,1251.5,4.29354221]
[1672973014065,2.99101713,1251.6,1251.5,4.29354221]
[1672973014597,8.69881713,1251.7,1251.5,4.29354221]
[1672973014797,5.7078,1251.7,1251.6,1.79354221]
[1672973015009,5.7078,1251.7,1251.5,6.68661278]
[1672973015215,2.9944433,1251.6,1251.5,6.68661278]
[1672973015427,5.4944433,1251.6,1251.5,6.68661278]
[1672973015743,5.4944433,1251.6,1251.5,4.29354221]
[1672973016169,5.4944433,1251.6,1251.5,6.68661278]
[1672973017118,5.4944433,1251.6,1251.5,4.29354221]
[1672973018053,2.9944433,1251.6,1251.5,4.29354221]
[1672973020791,2.9944433,1251.6,1251.5,12.29154221]
[1672973020995,2.9944433,1251.8,1251.5,18.1198782]
[1672973021207,2.9944433,1251.8,1251.7,4.18814956]
[1672973021528,2.9944433,1251.8,1251.7,4.29492124]
[1672973024163,2.9944433,1251.8,1251.7,12.29292124]
[1672973024367,6.2022433,1251.9,1251.7,14.68538244]
[1672973024574,6.2022433,1251.9,1251.8,4.29415412]
[1672973025099,2.9944433,1251.9,1251.8,2.5]
[1672973026046,2.9944433,1251.9,1251.8,10.498]
[1672973026363,2.9984433,1252.0,1251.8,16.09902832]
[1672973026575,2.9984433,1252.0,1251.9,1.79316756]
[1672973027313,0.004,1252.0,1251.8,17.89219588]
[1672973027835,2.9984433,1252.0,1251.8,17.89219588]
[1672973028037,0.004,1252.0,1251.8,17.89219588]
[1672973028671,2.9984433,1252.0,1251.8,17.89219588]
[1672973029302,2.9984433,1252.0,1251.8,15.49896756]
[1672973030989,2.9984433,1252.0,1251.8,12.29116756]
[1672973031302,0.004,1252.0,1251.8,12.29116756]
[1672973031717,2.9984433,1252.0,1251.8,12.29116756]
[1672973032133,0.004,1252.0,1251.8,12.29116756]
[1672973032349,0.004,1252.0,1251.8,14.68439588]
[1672973032565,0.004,1252.0,1251.9,9.79116756]
[1672973032983,0.004,1252.0,1251.9,12.99896756]
[1672973033630,0.004,1252.0,1251.9,11.2058]
[1672973033840,0.004,1252.0,1251.9,12.99896756]
[1672973034361,0.004,1252.0,1251.8,4.29316756]
[1672973034571,0.004,1252.0,1251.8,2.5]
[1672973034773,0.004,1252.0,1251.8,4.29316756]
[1672973034988,5.7118,1252.0,1251.8,4.29316756]
[1672973035198,8.7062433,1252.0,1251.8,2.5]
[1672973038254,6.2062433,1252.0,1251.8,2.5]
[1672973041192,2.5,1251.9,1251.8,2.49500514]
[1672973044456,2.5,1251.9,1251.7,12.29116756]
[1672973045302,2.5,1251.9,1251.7,10.498]
[1672973045510,2.5,1251.9,1251.7,12.29116756]
[1672973045722,2.5,1251.9,1251.7,10.498]
[1672973046986,5.7078,1251.9,1251.7,10.498]
[1672973049509,2.5,1251.9,1251.7,10.498]
[1672973049713,5.7078,1251.9,1251.7,10.498]
[1672973050242,8.7022433,1251.9,1251.7,2.5]
[1672973050558,8.7022433,1251.9,1251.6,4.29316756]
[1672973052134,3.2078,1251.8,1251.6,4.29316756]
[1672973052444,2.5,1251.7,1251.6,4.29316756]
[1672973053285,3.2078,1251.8,1251.6,4.29316756]
[1672973054237,5.4944433,1251.9,1251.6,4.29316756]
[1672973054437,3.2078,1251.8,1251.6,4.29316756]
[1672973054650,2.5,1251.7,1251.6,4.29316756]
[1672973055602,3.2078,1251.8,1251.6,4.29316756]
[1672973055812,2.5,1251.7,1251.6,4.29316756]
[1672973056863,2.5,1251.7,1251.6,1.79316756]
[1672973057067,2.5,1251.7,1251.6,4.29316756]
[1672973057281,2.5,1251.7,1251.6,6.68639588]
[1672973057599,3.2078,1251.8,1251.6,6.68639588]
[1672973059277,6.2022433,1251.8,1251.7,1.79316756]
[1672973059590,6.2022433,1251.8,1251.7,4.29316756]
[1672973060535,2.9944433,1251.8,1251.7,4.29316756]
[1672973061379,6.2022433,1251.8,1251.7,4.29316756]
[1672973061696,2.9944433,1251.8,1251.7,4.29316756]
[1672973061900,6.2022433,1251.8,1251.7,4.29316756]
[1672973062431,2.9944433,1251.8,1251.7,1.79316756]
[1672973062632,6.2022433,1251.8,1251.7,1.79316756]
[1672973064005,2.9944433,1251.8,1251.7,1.79316756]
[1672973064530,6.2022433,1251.8,1251.7,1.79316756]
[1672973065161,2.9944433,1251.8,1251.7,1.79316756]
[1672973065477,6.2022433,1251.8,1251.7,1.79316756]
[1672973067461,2.9944433,1251.8,1251.7,1.79316756]
[1672973067678,6.2022433,1251.8,1251.7,1.79316756]
[1672973069045,2.9944433,1251.8,1251.7,1.79316756]
[1672973069256,6.2022433,1251.8,1251.7,1.79316756]
[1672973070519,2.9944433,1251.8,1251.7,1.79316756]
[1672973070832,6.2022433,1251.8,1251.7,1.79316756]
[1672973071671,2.9944433,1251.8,1251.7,1.79316756]
[1672973073455,2.9944433,1251.8,1251.7,4.18639588]
[1672973075247,2.9944433,1251.8,1251.7,2.39322832]
[1672973075878,2.9944433,1251.8,1251.7,4.18907015]
[1672973077773,2.9944433,1251.8,1251.7,1.79584183]
[1672973077987,2.9944433,1251.8,1251.7,4.18907015]
[1672973079344,2.9944433,1251.8,1251.7,2.39322832]
[1672973079767,2.9944433,1251.8,1251.7,4.18947614]
[1672973079966,9.29203545,1251.9,1251.7,4.29624782]
[1672973080499,9.29203545,1251.9,1251.7,1.79624782]
[1672973082184,6.08423545,1251.9,1251.7,1.79624782]
[1672973082499,3.2078,1251.8,1251.7,1.79624782]
[1672973083127,6.08423545,1251.9,1251.7,1.79624782]
[1672973083339,3.2078,1251.8,1251.7,1.79624782]
[1672973083550,6.20325079,1251.8,1251.7,4.18947614]
[1672973084289,2.99545079,1251.8,1251.7,4.18947614]
[1672973084602,6.20325079,1251.8,1251.7,4.18947614]
[1672973085129,6.20325079,1251.8,1251.7,2.39322832]
[1672973085752,6.20325079,1251.8,1251.7,4.18979878]
[1672973085964,6.20325079,1251.8,1251.7,2.39322832]
[1672973087119,3.2078,1251.8,1251.7,4.1897964]
[1672973089543,6.08423545,1251.9,1251.7,4.1897964]
[1672973089747,3.2078,1251.8,1251.7,4.1897964]
[1672973090481,6.08423545,1251.9,1251.7,4.1897964]
[1672973090697,3.2078,1251.8,1251.7,1.79656808]
[1672973090897,3.2078,1251.8,1251.6,1.79656808]
[1672973091109,10.96476283,1251.8,1251.6,1.79656808]
[1672973091430,6.09567651,1251.7,1251.6,1.79656808]
[1672973091745,2.5,1251.7,1251.5,1.79656808]
[1672973091959,6.20210178,1251.6,1251.5,1.79656808]
[1672973092171,6.20210178,1251.6,1251.5,4.1897964]
[1672973093331,6.20210178,1251.6,1251.5,1.79656808]
[1672973094269,6.20210178,1251.6,1251.5,2.99375931]
[1672973095004,6.20210178,1251.6,1251.5,1.79656808]
[1672973097432,6.20210178,1251.6,1251.5,2.99314895]
[1672973098054,2.99430178,1251.6,1251.5,2.99314895]
[1672973098261,6.20210178,1251.6,1251.5,2.99314895]
[1672973098475,6.20210178,1251.6,1251.5,1.79656808]
[1672973099105,3.2078,1251.6,1251.5,1.79656808]
[1672973099314,6.20210178,1251.6,1251.5,2.99304752]
[1672973099628,3.2078,1251.6,1251.5,1.79656808]
[1672973099841,3.2078,1251.6,1251.5,2.99289879]
[1672973100259,3.2078,1251.6,1251.4,2.99289879]
[1672973100570,5.49156579,1251.5,1251.4,1.19633071]
[1672973101214,5.49156579,1251.5,1251.4,2.99289879]
[1672973101520,5.49156579,1251.5,1251.4,1.19633071]
[1672973103418,2.5,1251.5,1251.4,1.19633071]
[1672973103628,2.5,1251.5,1251.4,2.99289879]
[1672973103828,6.19936579,1251.6,1251.4,2.99289879]
[1672973104044,2.5,1251.5,1251.4,2.99289879]
[1672973106685,2.5,1251.5,1251.4,1.19633071]
[1672973107629,5.7078,1251.5,1251.4,1.19633071]
[1672973109514,3.2078,1251.5,1251.4,1.19633071]
[1672973110145,3.2078,1251.5,1251.4,2.99289879]
[1672973114041,3.2078,1251.5,1251.4,1.19633071]
[1672973114248,3.2078,1251.5,1251.4,2.99289879]
[1672973114458,3.2078,1251.5,1251.4,1.1935926]
[1672973114669,5.7078,1251.5,1251.4,2.99016068]
[1672973115402,3.2078,1251.5,1251.4,2.99016068]
[1672973115927,3.2078,1251.5,1251.4,1.79656808]
[1672973117299,3.2078,1251.5,1251.4,4.29656808]
[1672973117927,8.69936579,1251.7,1251.4,4.29656808]
[1672973118139,8.69936579,1251.7,1251.5,2.5]
[1672973119614,3.2078,1251.6,1251.5,2.5]
[1672973120663,6.19936579,1251.6,1251.5,2.5]
[1672973121396,3.2078,1251.6,1251.5,2.5]
[1672973122245,5.49156579,1251.7,1251.5,2.5]
[1672973122452,3.2078,1251.6,1251.5,2.5]
[1672973122663,3.2078,1251.6,1251.4,6.6897964]
[1672973122873,6.19936579,1251.6,1251.5,2.5]
[1672973123398,3.2078,1251.6,1251.5,4.29656808]
[1672973123927,6.19936579,1251.6,1251.5,2.5]
[1672973124656,3.2078,1251.6,1251.5,4.29656808]
[1672973125818,8.69936579,1251.7,1251.5,4.29656808]
[1672973127611,5.49156579,1251.7,1251.5,4.29656808]
[1672973127817,8.69936579,1251.7,1251.5,4.29656808]
[1672973128869,8.69936579,1251.7,1251.5,6.6897964]
[1672973129078,5.49156579,1251.7,1251.5,6.6897964]
[1672973129285,8.69936579,1251.7,1251.5,6.6897964]
[1672973129602,2.5,1251.7,1251.6,1.79656808]
[1672973129810,5.7078,1251.7,1251.6,1.79656808]
[1672973130239,2.5,1251.7,1251.6,1.79656808]
[1672973130442,5.7078,1251.7,1251.6,1.79656808]
[1672973130651,2.5,1251.7,1251.6,1.79656808]
[1672973131287,3.2078,1251.7,1251.6,1.79656808]
[1672973131602,8.70150599,1251.7,1251.6,1.79656808]
[1672973132019,5.7078,1251.7,1251.6,1.79656808]
[1672973134228,5.7078,1251.7,1251.5,6.6897964]
[1672973134435,2.99364955,1251.6,1251.5,6.6897964]
[1672973134645,5.49364955,1251.6,1251.5,4.29584025]
[1672973135171,2.99364955,1251.6,1251.5,4.29584025]
[1672973135378,2.99364955,1251.6,1251.5,6.68906857]
[1672973138747,2.99364955,1251.6,1251.5,4.29584025]
[1672973138952,2.99364955,1251.6,1251.5,1.79584025]
[1672973140109,6.20144955,1251.6,1251.5,1.79584025]
[1672973141792,2.99364955,1251.6,1251.5,1.79584025]
[1672973142002,6.20144955,1251.6,1251.5,1.79584025]
[1672973142744,6.20144955,1251.6,1251.5,4.18906857]
[1672973143160,6.20144955,1251.6,1251.5,2.39322832]
[1672973143371,6.20144955,1251.6,1251.5,4.18944351]
[1672973143578,6.20144955,1251.6,1251.5,4.1894038]
[1672973144107,2.99364955,1251.6,1251.5,4.1894038]
[1672973144841,2.99364955,1251.6,1251.5,1.79617548]
[1672973145162,2.99364955,1251.6,1251.5,4.1894038]
[1672973145897,2.99364955,1251.6,1251.5,4.1895512]
[1672973146099,2.99364955,1251.6,1251.5,2.39322832]
[1672973146308,2.99364955,1251.6,1251.5,3.80949869]
[1672973147782,3.2078,1251.7,1251.5,4.41417117]
[1672973147783,2.99364955,1251.7,1251.5,4.41417117]
[1672973147998,2.99364955,1251.7,1251.6,2.39450236]
[1672973148198,5.49364955,1251.8,1251.6,5.4979008]
[1672973148412,2.99364955,1251.8,1251.7,2.39420799]
[1672973148942,2.99364955,1251.8,1251.7,4.18877354]
[1672973149151,8.70144955,1251.9,1251.7,4.18877354]
[1672973149365,8.70144955,1251.9,1251.8,2.5]
[1672973149892,5.7078,1251.9,1251.8,2.5]
[1672973150942,8.69924408,1251.9,1251.8,2.5]
[1672973151890,8.69924408,1251.9,1251.7,1.79456555]
[1672973152095,2.99144408,1251.8,1251.7,1.79456555]
[1672973152416,5.49144408,1251.8,1251.7,1.79456555]
[1672973153042,2.5,1251.8,1251.7,1.79456555]
[1672973153256,8.69924408,1251.9,1251.7,1.79456555]
[1672973153770,5.49144408,1251.9,1251.7,1.79456555]
[1672973153985,8.69924408,1251.9,1251.7,1.79456555]
[1672973155042,5.49144408,1251.9,1251.7,1.79456555]
[1672973155667,8.69924408,1251.9,1251.7,1.79456555]
[1672973156296,2.99144408,1251.8,1251.7,1.79456555]
[1672973156512,5.49144408,1251.8,1251.6,6.68877354]
[1672973156823,2.5,1251.7,1251.6,4.29456555]
[1672973157142,8.69924408,1251.7,1251.6,1.79456555]
[1672973157344,8.69924408,1251.7,1251.5,6.68877354]
[1672973157975,8.69924408,1251.7,1251.6,1.79456555]
[1672973158180,8.69924408,1251.7,1251.6,4.29456555]
[1672973159038,5.49144408,1251.7,1251.6,4.29456555]
[1672973159249,8.69924408,1251.7,1251.6,4.29456555]
[1672973159560,5.49144408,1251.7,1251.6,4.29456555]
[1672973159776,8.69924408,1251.7,1251.6,4.29456555]
[1672973160826,5.7078,1251.7,1251.6,4.29456555]
[1672973161773,3.2078,1251.7,1251.6,4.29456555]
[1672973161978,2.99144408,1251.8,1251.6,6.68877354]
[1672973162189,2.99144408,1251.8,1251.7,4.29456555]
[1672973165136,8.69862199,1251.9,1251.7,4.29456555]
[1672973167237,2.99082199,1251.8,1251.7,4.29456555]
[1672973168182,8.69862199,1251.9,1251.7,4.29456555]
[1672973173647,8.69862199,1251.9,1251.7,1.79456555]
[1672973173849,2.99082199,1251.8,1251.6,4.29456555]
[1672973174058,2.99082199,1251.8,1251.6,1.79456555]
[1672973174059,5.7078,1251.7,1251.6,1.79456555]
[1672973176484,8.69862199,1251.7,1251.6,1.79456555]
[1672973176895,5.49082199,1251.7,1251.6,1.79456555]
[1672973177109,8.69862199,1251.7,1251.6,1.79456555]
[1672973179637,5.7078,1251.7,1251.6,1.79456555]
[1672973179951,3.2078,1251.7,1251.6,1.79456555]
[1672973180371,2.99082199,1251.8,1251.6,1.79456555]
[1672973180578,6.19862199,1251.8,1251.6,1.79456555]
[1672973180898,6.19862199,1251.8,1251.6,4.18877354]
[1672973181637,6.19862199,1251.8,1251.6,1.79456555]
[1672973181946,2.5,1251.7,1251.6,1.79095117]
[1672973182264,2.5,1251.7,1251.6,4.18515916]
[1672973182793,2.5,1251.7,1251.6,1.79095117]
[1672973183000,2.5,1251.7,1251.6,4.18515916]
[1672973183310,6.19862199,1251.8,1251.6,4.18515916]
[1672973183841,2.5,1251.7,1251.6,4.18515916]
[1672973184362,2.5,1251.7,1251.6,2.39420799]
[1672973185100,2.5,1251.7,1251.6,3.81035313]
[1672973185624,2.5,1251.7,1251.6,2.39420799]
[1672973186460,6.19862199,1251.8,1251.6,2.39420799]
[1672973187094,2.99082199,1251.8,1251.6,2.39420799]
[1672973187308,2.5,1251.7,1251.6,2.39420799]
[1672973187617,5.49082199,1251.7,1251.6,2.39420799]
[1672973189197,2.99082199,1251.7,1251.6,2.39420799]
[1672973193187,2.99082199,1251.7,1251.6,3.81036946]
[1672973194126,6.19862199,1251.8,1251.6,3.81036946]
[1672973194658,6.19862199,1251.8,1251.7,2.5]
[1672973194973,6.19862199,1251.8,1251.7,4.89420799]
[1672973196334,6.19862199,1251.8,1251.7,2.5]
[1672973196864,6.19862199,1251.8,1251.7,4.89420799]
[1672973197604,6.19862199,1251.8,1251.7,2.5]
[1672973198124,6.19862199,1251.8,1251.7,4.89420799]
[1672973198965,2.99082199,1251.8,1251.7,4.89420799]
[1672973199280,2.99082199,1251.8,1251.7,2.5]
[1672973200011,2.99082199,1251.8,1251.7,4.89420799]
[1672973206005,8.69862199,1251.9,1251.7,12.5159344]
[1672973206212,8.69862199,1251.9,1251.7,8.10200799]
[1672973206424,2.99482199,1252.0,1251.8,3.81013543]
[1672973206628,2.99082199,1251.9,1251.8,2.39420799]
[1672973207362,2.99082199,1251.9,1251.7,19.09790879]
[1672973208426,2.99082199,1251.9,1251.7,16.10000799]
[1672973209055,2.99082199,1251.9,1251.7,19.09790879]
[1672973209681,2.99082199,1251.9,1251.7,15.89010879]
[1672973210420,5.49482199,1252.0,1251.8,2.39420799]
[1672973210628,2.99482199,1252.0,1251.9,2.5]
[1672973210850,5.49482199,1252.0,1251.9,2.5]
[1672973211680,2.504,1252.0,1251.9,2.5]
[1672973212732,3.2118,1252.0,1251.9,2.5]
[1672973212947,3.2118,1252.0,1251.7,12.89220799]
[1672973213148,2.5,1251.8,1251.7,12.89220799]
[1672973213356,2.5,1251.8,1251.7,17.30607959]
[1672973213566,2.5,1251.9,1251.7,17.30607959]
[1672973213783,2.5,1251.9,1251.7,15.89010879]
[1672973214416,2.5,1251.9,1251.7,12.89220799]
[1672973215259,2.5,1251.9,1251.7,15.89010879]
[1672973215469,2.5,1251.9,1251.7,12.89220799]
[1672973216203,5.49141578,1251.9,1251.7,12.89220799]
[1672973216516,5.49541578,1252.0,1251.7,15.89010879]
[1672973217461,2.99541578,1252.0,1251.7,15.89010879]
[1672973217779,0.004,1252.0,1251.9,2.5]
[1672973225140,3.2118,1252.0,1251.9,2.5]
[1672973225348,5.7118,1252.0,1251.9,2.5]
[1672973225559,5.7118,1252.0,1251.7,12.89220799]
[1672973228604,5.7118,1252.0,1251.7,15.89010879]
[1672973228806,3.2118,1252.0,1251.7,15.89010879]
[1672973229019,3.2118,1252.0,1251.8,2.39420799]
[1672973229443,3.2118,1252.0,1251.9,2.5]
[1672973229654,0.004,1252.0,1251.9,2.5]
[1672973234593,0.004,1252.0,1251.9,3.69578222]
[1672973238695,0.004,1252.0,1251.9,2.5]
[1672973240474,0.004,1252.0,1251.9,3.6961348]
[1672973241955,0.004,1252.0,1251.9,5.4903768]
[1672973242681,0.004,1252.0,1251.9,4.294242]
[1672973244051,0.004,1252.0,1251.9,5.49062118]
[1672973244578,0.004,1252.0,1251.9,4.294242]
[1672973246886,0.004,1252.0,1251.9,6.68844999]
[1672973250354,0.004,1252.0,1251.9,4.29064653]
[1672973254137,0.004,1252.0,1251.9,6.68485452]
[1672973256349,0.004,1252.0,1251.9,4.29064653]
[1672973257704,0.004,1252.0,1251.9,6.68485452]
[1672973257916,0.004,1252.0,1251.9,4.29064653]
[1672973258551,0.004,1252.0,1251.9,5.48730757]
[1672973259291,3.2118,1252.0,1251.9,5.48730757]
[1672973260025,3.2118,1252.0,1251.9,2.99090304]
[1672973260226,6.80747651,1252.0,1251.9,2.99090304]
[1672973260541,6.80747651,1252.0,1251.9,1.19666104]
[1672973261808,3.2118,1252.0,1251.9,2.99090304]
[1672973263170,6.80747651,1252.0,1251.9,2.99090304]
[1672973264953,3.2118,1252.0,1251.9,2.99090304]
[1672973265488,6.80747651,1252.0,1251.9,2.99090304]
[1672973265899,3.2118,1252.0,1251.9,2.99090304]
[1672973266114,3.2118,1252.0,1251.9,4.18844999]
[1672973266325,3.2118,1252.0,1251.9,1.794242]
[1672973266638,3.2118,1252.0,1251.9,4.18844999]
[1672973267273,3.2118,1252.0,1251.9,1.794242]
[1672973268205,3.2118,1252.0,1251.9,2.9911663]
[1672973268426,0.004,1252.0,1251.9,2.9911663]
[1672973268636,3.2118,1252.0,1251.9,2.9911663]
[1672973270002,5.7118,1252.0,1251.9,1.794242]
[1672973270212,5.7118,1252.0,1251.9,2.99111295]
[1672973270424,3.2118,1252.0,1251.9,2.99111295]
[1672973270841,3.2118,1252.0,1251.9,1.794242]
[1672973271892,3.2118,1252.0,1251.9,2.99111222]
[1672973272102,3.2118,1252.0,1251.9,1.794242]
[1672973272739,0.004,1252.0,1251.9,1.794242]
[1672973277362,0.004,1252.0,1251.9,4.18844999]
[1672973278621,0.004,1252.0,1251.9,1.794242]
[1672973278933,0.004,1252.0,1251.9,4.18844999]
[1672973279663,0.004,1252.0,1251.9,4.18897544]
[1672973279874,0.004,1252.0,1251.9,1.79476745]
[1672973281352,3.2118,1252.0,1251.9,4.18897544]
[1672973281559,3.2118,1252.0,1251.9,1.79476745]
[1672973281882,3.2118,1252.0,1251.9,4.18897544]
[1672973283351,3.2118,1252.0,1251.9,2.39420799]
[1672973283551,3.2118,1252.0,1251.9,4.18885545]
[1672973283874,0.004,1252.0,1251.9,4.18885545]
[1672973284085,3.2118,1252.0,1251.9,4.18885545]
[1672973284819,3.2118,1252.0,1251.9,1.79464746]
[1672973285874,3.2118,1252.0,1251.9,4.18885545]
[1672973286085,3.2118,1252.0,1251.9,1.79464746]
[1672973286292,3.2118,1252.0,1251.9,4.18885545]
[1672973286609,0.004,1252.0,1251.9,4.18885545]
[1672973289772,0.004,1252.0,1251.9,1.79464746]
[1672973292289,3.2118,1252.0,1251.9,1.79464746]
[1672973292491,3.2118,1252.0,1251.9,2.99117558]
[1672973293440,0.004,1252.0,1251.9,2.99117558]
[1672973293649,3.2118,1252.0,1251.9,1.79464746]
[1672973294177,0.004,1252.0,1251.9,1.79464746]
[1672973294386,3.2118,1252.0,1251.9,1.79464746]
[1672973296606,0.004,1252.0,1251.9,1.79464746]
[1672973297337,3.2118,1252.0,1251.9,1.79464746]
[1672973299962,3.2118,1252.0,1251.9,1.19666151]
[1672973300163,9.30747651,1252.0,1251.8,2.99130897]
[1672973300374,13.46876283,1252.0,1251.8,2.99130897]
[1672973300584,2.5,1251.9,1251.8,2.99130897]
[1672973301216,2.5,1251.9,1251.8,1.19666151]
[1672973301426,2.49477982,1251.9,1251.8,5.49130897]
[1672973301643,2.49477982,1251.9,1251.8,2.99130897]
[1672973305532,5.70257982,1251.9,1251.8,2.99130897]
[1672973306477,5.70257982,1251.9,1251.8,1.79464746]
[1672973306687,5.70257982,1251.9,1251.8,2.99067631]
[1672973306896,5.70257982,1251.9,1251.8,1.79464746]
[1672973307431,5.70257982,1251.9,1251.8,4.18885545]
[1672973307637,5.70257982,1251.9,1251.8,1.79464746]
[1672973307947,5.70257982,1251.9,1251.8,2.99064278]
[1672973309844,2.49477982,1251.9,1251.8,2.99064278]
[1672973310054,5.70257982,1251.9,1251.8,2.99064278]
[1672973311314,5.70257982,1251.9,1251.8,1.19599532]
[1672973311943,5.70257982,1251.9,1251.8,2.99064278]
[1672973313523,5.70257982,1251.9,1251.8,1.19599532]
[1672973316778,13.70057982,1251.9,1251.6,1.19599532]
[1672973317096,3.2078,1251.7,1251.6,1.19599532]
[1672973317408,5.7078,1251.7,1251.6,1.19599532]
[1672973317830,5.7078,1251.7,1251.6,2.99064278]
[1672973318038,3.2078,1251.7,1251.6,4.29464746]
[1672973319303,3.2078,1251.7,1251.6,6.68885545]
[1672973319509,10.49277982,1251.9,1251.6,6.68885545]
[1672973319719,3.2078,1251.8,1251.7,1.19455053]
[1672973320034,3.2078,1251.8,1251.7,3.69455053]
[1672973321079,10.49277982,1251.9,1251.7,3.69455053]
[1672973321297,3.2078,1251.8,1251.7,3.69455053]
[1672973321508,10.49277982,1251.9,1251.7,3.69455053]
[1672973321721,3.2078,1251.8,1251.7,3.69455053]
[1672973322246,3.2078,1251.8,1251.7,1.19455053]
[1672973323928,10.49277982,1251.9,1251.7,1.19455053]
[1672973324137,3.2078,1251.8,1251.7,1.19455053]
[1672973327713,14.08845633,1251.9,1251.7,1.19455053]
[1672973328024,3.2078,1251.8,1251.7,1.19455053]
[1672973328976,14.08845633,1251.9,1251.7,1.19455053]
[1672973329292,3.2078,1251.8,1251.7,1.19455053]
[1672973331506,14.08845633,1251.9,1251.7,1.19455053]
[1672973331813,3.2078,1251.8,1251.7,1.19455053]
[1672973332650,14.08845633,1251.9,1251.7,1.19455053]
[1672973332859,3.2078,1251.8,1251.7,1.19455053]
[1672973336651,14.08845633,1251.9,1251.7,1.19455053]
[1672973336856,3.2078,1251.8,1251.7,1.19455053]
[1672973338959,14.08845633,1251.9,1251.7,1.19455053]
[1672973339800,3.2078,1251.8,1251.7,1.19455053]
[1672973342854,3.2078,1251.8,1251.6,2.98919799]
[1672973343167,2.5,1251.7,1251.6,2.98919799]
[1672973343376,2.5,1251.7,1251.6,1.19455053]
[1672973344106,5.7078,1251.7,1251.6,1.19455053]
[1672973345897,5.7078,1251.7,1251.5,2.98919799]
[1672973348832,5.7078,1251.7,1251.6,1.19455053]
[1672973349994,5.7078,1251.7,1251.5,2.98919799]
[1672973350835,5.7078,1251.7,1251.6,1.19455053]
[1672973351259,5.7078,1251.7,1251.5,2.98919799]
[1672973352623,3.2078,1251.6,1251.5,2.98919799]
[1672973353154,3.2078,1251.6,1251.5,1.79464746]
[1672973353676,3.2078,1251.6,1251.5,2.98826017]
[1672973354625,3.2078,1251.6,1251.5,1.79464746]
[1672973354843,2.5,1251.7,1251.5,1.79464746]
[1672973355039,2.5,1251.7,1251.6,1.19359213]